fUSD/lending_fUSD_20240408
["ID","MTS","AMOUNT","RATE_DAILY","PERIOD"]
[321855828,1712566244688,-1474.01189071,0.00020627,2]
[321855829,1712566244700,-4923.52183515,0.00020627,2]
[321855830,1712566244711,-5555.44603987,0.00020627,2]
[321855831,1712566244723,-706.24998,0.00020627,2]
[321855832,1712566244750,-948.1015237,0.00020627,2]
[321855833,1712566244887,-1537.80570691,0.00020627,2]
[321855834,1712566244899,-2403.16473781,0.00020627,2]
[321855835,1712566244950,-816.90876484,0.00020627,2]
[321855836,1712566244961,-1027.93051586,0.00020627,2]
[321855837,1712566244972,-830.85451076,0.00020627,2]
[321855838,1712566244983,-974.46472317,0.00020627,2]
[321855860,1712566246500,-155.0,0.00018016,2]
[321855861,1712566246510,-325.27119403,0.00018016,2]
[321855862,1712566246539,-817.1476862,0.00018016,2]
[321855920,1712566249226,-886.35162591,0.00018016,2]
[321855922,1712566249242,-2437.61933018,0.00018016,2]
[321855925,1712566249253,-1143.6242698,0.00020289,2]
[321855927,1712566249269,-1013.08952616,0.00020289,2]
[321855929,1712566249280,-2556.41047384,0.00020627,2]
[321855931,1712566249292,-49950.30406315,0.00020627,2]
[321855933,1712566249303,-54822.0000087,0.00020627,2]
[321855936,1712566249316,-12107.41396601,0.00020627,2]
[321856003,1712566249944,-1726.33539937,0.00020627,2]
[321856027,1712566250158,-8285.49322215,0.00020627,2]
[321856030,1712566250174,-324.44760009,0.00020627,2]
[321856034,1712566250203,-820.06669622,0.00020627,2]
[321856664,1712566262102,952.74784911,0.00017117,2]
[321856665,1712566272898,4284.30075983,0.000154,2]
[321856666,1712566278177,1780.62766545,0.00017916,2]
[321856667,1712566282053,751.92434253,9e-05,2]
[321856668,1712566318135,2850.0,6.94e-05,2]
[321856669,1712566320550,151.0,0.00027729,120]
[321856670,1712566340819,613.56,0.00017718,2]
[321856671,1712566351660,259.23294087,0.00015,2]
[321856678,1712566403397,-390.04159916,0.00018015,2]
[321856679,1712566403419,-500.0,0.00018015,2]
[321856680,1712566403441,-213.82560365,0.00018016,2]
[321856681,1712566403462,-449.75054521,0.00018016,2]
[321856682,1712566403485,-446.38225198,0.00018018,2]
[321856683,1712566404105,-148.76910704,0.00018018,2]
[321856684,1712566404127,-269.56270118,0.00018018,2]
[321856685,1712566404148,-1581.66819178,0.00018018,2]
[321856686,1712566404562,-322.84123193,0.00018018,2]
[321856687,1712566404583,-1677.15876807,0.00019,3]
[321856688,1712566405209,-72.84123193,0.00019,3]
[321856692,1712566441763,1927.15876807,0.00012,2]
[321856693,1712566441793,2000.0,0.00012,2]
[321856694,1712566441817,2000.0,0.00012,2]
[321856695,1712566441840,2000.0,0.00012,2]
[321856696,1712566441863,150.61871945,0.00012,2]
[321856702,1712566746445,184.63,0.00015359,2]
[321856703,1712566827281,590.56,0.00017228,2]
[321856704,1712566901922,169.0,0.00028625,120]
[321856705,1712566918752,151.0,0.0002824,120]
[321856706,1712567031229,161.78536777,0.00018938,2]
[321856710,1712567221274,-426.14410958,0.00019015,2]
[321856711,1712567221295,-314.25,0.00019016,2]
[321856712,1712567221313,-443.18970024,0.0001903,2]
[321856713,1712567221333,-500.0,0.00019031,2]
[321856714,1712567221352,-28043.69493455,0.00019031,2]
[321856715,1712567221373,-362.35522605,0.00019032,2]
[321856716,1712567221390,-3374.83061436,0.00019032,2]
[321856717,1712567221409,-100369.31990152,0.00019033,2]
[321856718,1712567221428,-1039.0,0.00019035,2]
[321856719,1712567221447,-150.0,0.00019037,2]
[321856720,1712567221468,-250.0,0.00019038,2]
[321856721,1712567221490,-951.13,0.00019038,2]
[321856722,1712567221510,-150.0,0.00019044,2]
[321856723,1712567221529,-200.0,0.0001905,2]
[321856724,1712567221549,-348.82,0.0001905,2]
[321856725,1712567221569,-500.0,0.0001905,2]
[321856726,1712567221589,-180.95,0.00019068,2]
[321856727,1712567221607,-499.99,0.00019068,2]
[321856728,1712567221630,-150.99,0.00019068,2]
[321856729,1712567221650,-1852.42,0.00019078,2]
[321856730,1712567221672,-169.0,0.00019083,2]
[321856731,1712567221691,-200.0,0.00019088,2]
[321856732,1712567221710,-598.94904164,0.00019155,2]
[321856733,1712567221729,-1000.0,0.00019157,2]
[321856734,1712567221752,-500.0,0.00019178,2]
[321856735,1712567221773,-500.0,0.00019178,2]
[321856736,1712567221794,-500.0,0.00019178,2]
[321856737,1712567221813,-500.0,0.00019178,2]
[321856738,1712567221833,-328.08492884,0.00019178,2]
[321856739,1712567221853,-500.0,0.00019178,2]
[321856752,1712567226858,9076.44361527,0.00018938,2]
[321856798,1712567239928,-1746.9,0.00019285,2]
[321856799,1712567239949,-11273.53792795,0.00019383,2]
[321856840,1712567269562,241.24725913,0.00014384,2]
[321856842,1712567282049,151.0,0.00028165,120]
[321856843,1712567343589,150.5,0.00020617,15]
[321856844,1712567344068,150.5,0.00020607,15]
[321856845,1712567344356,312.0,0.00020617,15]
[321856846,1712567344674,170.97,0.00020597,15]
[321856847,1712567344831,312.0,0.00020607,15]
[321856848,1712567345379,312.0,0.00020597,15]
[321856849,1712567345940,312.0,0.00020882,15]
[321856850,1712567346500,312.0,0.00020872,15]
[321856851,1712567347178,312.0,0.00020862,15]
[321856852,1712567347835,312.0,0.00020954,15]
[321856853,1712567348168,312.0,0.00020944,15]
[321856854,1712567348636,312.0,0.0002099,15]
[321856855,1712567349100,321.0,0.0002098,15]
[321856856,1712567353877,579.91,0.00017285,2]
[321856857,1712567378550,-151.0,0.0002874,30]
[321856858,1712567378585,-1104.0,0.000297,30]
[321856859,1712567378616,-528.348724,0.0003,31]
[321856860,1712567378640,-97500.0,0.0003,30]
[321856861,1712567378663,-1000.0,0.0003,30]
[321856862,1712567378693,-600.0,0.00031,32]
[321856863,1712567378720,-600.0,0.00032,33]
[321856864,1712567378743,-358.94141399,0.00032,32]
[321856865,1712567378766,-1000.0,0.00032,120]
[321856866,1712567378789,-10000.0,0.00032,30]
[321856867,1712567378811,-1500.0,0.00032,30]
[321856868,1712567378833,-1000.0,0.00032,30]
[321856906,1712567433655,-500.0,0.00019173,2]
[321856908,1712567433665,-382.41917791,0.00019174,2]
[321856910,1712567433675,-1263.20128055,0.00019176,2]
[321856912,1712567433685,-9.69954154,0.00019176,2]
[321856913,1712567433697,-348.83024503,0.00019176,2]
[321856914,1712567433706,-301.3388285,0.000192,2]
[321856915,1712567433822,-720.72,0.000192,2]
[321856916,1712567433834,-1559.27053963,0.000192,2]
[321856917,1712567433844,-1164.26,0.00019237,2]
[321856918,1712567433853,-500.0,0.00019251,2]
[321856919,1712567433862,-150.0,0.00019366,2]
[321856920,1712567433872,-950.1986178,0.00019367,2]
[321856921,1712567433884,-3341.97136,0.00019367,2]
[321856922,1712567433923,-518.40021227,0.00019367,2]
[321856923,1712567433936,-10788.72304618,0.00019367,2]
[321856924,1712567433947,-1067.04,0.00019367,2]
[321856925,1712567434057,-1792.97082992,0.00019367,2]
[321856927,1712567434069,-25711.73794096,0.00019367,2]
[321856928,1712567434077,-12483.74943887,0.00019368,2]
[321856929,1712567434184,-325.83270504,0.00019368,2]
[321857011,1712567439099,-991.28208448,0.00019368,2]
[321857012,1712567439111,-11785.66644771,0.00019368,2]
[321857013,1712567439120,-7652.96125354,0.00019382,2]
[321857014,1712567439130,-1000.0,0.00019382,2]
[321857015,1712567439139,-12626.46207205,0.00019383,2]
[321857016,1712567439148,-1000.0,0.00019386,2]
[321857017,1712567439158,-500.0,0.00019438,2]
[321857018,1712567439167,-314.23165876,0.00019438,2]
[321857019,1712567439176,-507.07331363,0.00019438,2]
[321857020,1712567439185,-8836.3219406,0.00019439,2]
[321857021,1712567439195,-196.0342,0.00019497,2]
[321857022,1712567439204,-162.111048,0.00019512,2]
[321857023,1712567439213,-1000.0,0.00019512,2]
[321857024,1712567439223,-12928.46029237,0.00019513,2]
[321857025,1712567439232,-168.07,0.00019545,2]
[321857026,1712567439242,-579.91,0.00019548,2]
[321857027,1712567439251,-1289.8622422,0.00019594,2]
[321857028,1712567439260,-150.01,0.00019597,2]
[321857029,1712567439270,-162.11104797,0.0001985,2]
[321857030,1712567439278,-2427.2305,0.000199,2]
[321857031,1712567439288,-4351.84536889,0.000199,2]
[321857032,1712567439298,-342.34435101,0.0001995,2]
[321857033,1712567439307,-1585.49089587,0.0001999,2]
[321857034,1712567439317,-2180.90381059,0.00019999,2]
[321857035,1712567439326,-345.12139171,0.0002,2]
[321857036,1712567439335,-800.0,0.0002,2]
[321857037,1712567439348,-18413.48260526,0.0002,2]
[321857038,1712567439374,-1749.92679451,0.0002,2]
[321857039,1712567439383,-162.11104797,0.00020189,2]
[321857040,1712567439394,-1303.05294329,0.00020281,2]
[321857041,1712567439403,-521.09465456,0.00020288,2]
[321857042,1712567439414,-4194.2319,0.00020325,2]
[321857043,1712567439423,-325.9423,0.00020325,2]
[321857044,1712567439434,-263.4107,0.00020325,2]
[321857045,1712567439445,-2283.83441682,0.0002033,2]
[321857046,1712567439454,-368.6273,0.00020376,2]
[321857047,1712567439464,-1000.0,0.00020376,2]
[321857048,1712567439476,-2283.83441676,0.00020393,2]
[321857049,1712567439486,-1000.0,0.000204,2]
[321857050,1712567439497,-594.24,0.00020415,3]
[321857051,1712567439507,-1843.90741837,0.00020419,2]
[321857052,1712567439521,-3656.48610772,0.00020425,2]
[321857053,1712567439533,-32456.73219228,0.00020425,2]
[321857054,1712567439543,-814.7246,0.00020425,2]
[321857055,1712567439552,-3115.881,0.00020425,2]
[321857056,1712567439563,-3304.94274186,0.0002043,2]
[321857057,1712567439574,-161.91099574,0.00020442,2]
[321857058,1712567439583,-3304.94274182,0.00020444,2]
[321857059,1712567439593,-161.9109957,0.00020455,2]
[321857060,1712567439602,-2283.83441676,0.00020457,2]
[321857061,1712567439611,-3304.94274182,0.00020459,2]
[321857062,1712567439621,-598.69,0.00020463,3]
[321857063,1712567439630,-161.9109957,0.00020467,2]
[321857064,1712567439639,-3304.94274182,0.00020473,2]
[321857065,1712567439649,-161.9109957,0.0002048,2]
[321857066,1712567439659,-3304.94274182,0.00020487,2]
[321857067,1712567439667,-161.9109957,0.00020492,2]
[321857068,1712567439677,-150.0,0.000205,2]
[321857069,1712567439840,-1242.0,0.000205,2]
[321857070,1712567439850,-3304.94274182,0.00020501,2]
[321857071,1712567439860,-161.9109957,0.00020505,2]
[321857072,1712567439870,-634.55963965,0.00020508,2]
[321857073,1712567439880,-9622.9453,0.00020509,2]
[321857074,1712567439890,-3304.94274182,0.00020516,2]
[321857075,1712567439900,-161.9109957,0.00020517,2]
[321857076,1712567439910,-2283.83441676,0.0002052,2]
[321857077,1712567439920,-344.89206377,0.00020523,2]
[321857078,1712567439930,-1544.08814707,0.00020525,2]
[321857087,1712567440016,-9550.91510529,0.00020525,2]
[321857091,1712567440067,-84134.45324764,0.00020525,2]
[321857092,1712567440076,-1000.0,0.00020525,2]
[321857093,1712567440086,-222.21433823,0.00020525,2]
[321857094,1712567440095,-344.89206371,0.00020526,2]
[321857095,1712567440104,-1237.5719,0.00020527,2]
[321857096,1712567440118,-39944.8804,0.00020527,2]
[321857097,1712567440128,-500.0,0.00020527,2]
[321857098,1712567440137,-7500.0,0.00020527,2]
[321857100,1712567440146,-213.0,0.00020527,2]
[321857102,1712567440156,-14198.11740929,0.00020527,2]
[321857103,1712567440165,-178.78456963,0.00020527,2]
[321857105,1712567440175,-162.11104797,0.00020527,2]
[321857106,1712567440184,-180.00658198,0.00020527,2]
[321857107,1712567440194,-192.1189982,0.00020527,2]
[321857108,1712567440203,-153.01000415,0.00020527,2]
[321857109,1712567440213,-230.9915,0.00020527,2]
[321857110,1712567440223,-6478.06457478,0.00020527,2]
[321857111,1712567440234,-3496.71402522,0.00020527,2]
[321857112,1712567440246,-348.62676343,0.00020527,2]
[321857113,1712567440258,-1277.47073657,0.00020527,2]
[321857114,1712567440267,-179.1217,0.00020527,2]
[321857115,1712567440276,-1000.0,0.00020527,2]
[321857116,1712567440285,-222.21433823,0.00020527,2]
[321857117,1712567440295,-289.47463303,0.00020528,2]
[321857118,1712567440360,-55.41743068,0.00020528,2]
[321857119,1712567440370,-279.42612179,0.00020529,2]
[321857120,1712567440387,-84.21714473,0.00020529,2]
[321857121,1712567440397,-224.69445647,0.00020529,2]
[321857122,1712567440540,-1245.26189599,0.00020529,2]
[321857123,1712567440550,-347.89896539,0.00020529,2]
[321857124,1712567440560,-13520.75858557,0.00020529,2]
[321857125,1712567440569,-694.25864678,0.00020529,2]
[321857126,1712567440579,-770.25666477,0.00020529,2]
[321857127,1712567440589,-261.43307601,0.00020529,3]
[321857128,1712567440599,-1963.37819585,0.00020529,2]
[321857129,1712567440608,-178.78456962,0.0002053,2]
[321857130,1712567440617,-222.21433823,0.0002053,2]
[321857131,1712567440626,-161.9109957,0.0002053,2]
[321857132,1712567440636,-3304.94274182,0.0002053,2]
[321857133,1712567440645,-344.89206371,0.00020531,2]
[321857134,1712567440655,-178.78456962,0.00020532,2]
[321857135,1712567440664,-222.21433823,0.00020532,2]
[321857136,1712567440673,-344.89206371,0.00020534,2]
[321857137,1712567440682,-180.00658197,0.00020535,2]
[321857138,1712567440691,-222.21433823,0.00020535,2]
[321857139,1712567440701,-344.89206371,0.00020537,2]
[321857140,1712567440710,-222.21433823,0.00020537,2]
[321857141,1712567440719,-153.01000397,0.00020538,2]
[321857142,1712567440728,-344.89206371,0.00020539,2]
[321857143,1712567440737,-222.21433823,0.0002054,2]
[321857144,1712567440746,-209.86645799,0.00020542,2]
[321857145,1712567440756,-180.00658197,0.00020542,2]
[321857146,1712567440765,-222.21433823,0.00020542,2]
[321857147,1712567440775,-344.89206371,0.00020542,2]
[321857148,1712567440784,-7933.45197004,0.00020545,2]
[321857149,1712567440793,-153.01000397,0.0002055,2]
[321857150,1712567440802,-153.01000397,0.00020561,2]
[321857151,1712567440811,-153.01000397,0.00020572,2]
[321857152,1712567440821,-7933.45196995,0.00020577,2]
[321857153,1712567440830,-2283.83441676,0.00020583,2]
[321857154,1712567440856,-153.01000397,0.00020584,2]
[321857155,1712567440866,-153.01000397,0.00020595,2]
[321857156,1712567440875,-694.25864677,0.00020597,2]
[321857157,1712567440885,-153.01000397,0.00020606,2]
[321857158,1712567440894,-2742.86309064,0.00020606,2]
[321857159,1712567440903,-7933.45196995,0.0002061,2]
[321857160,1712567440913,-25752.9471358,0.00020613,2]
[321857161,1712567440924,-8893.7939532,0.00020613,2]
[321857162,1712567440933,-304.13109594,0.00020615,2]
[321857163,1712567440943,-206.98143139,0.00020616,2]
[321857164,1712567440952,-206.98143139,0.00020617,2]
[321857165,1712567440962,-206.98143139,0.00020617,2]
[321857166,1712567440971,-319.03035418,0.00020617,2]
[321857167,1712567440981,-153.01000397,0.00020617,2]
[321857168,1712567440992,-539.0,0.00020623,2]
[321857169,1712567441002,-7099.36767959,0.00020623,2]
[321857170,1712567441013,-12265.19070327,0.00020623,2]
[321857171,1712567441023,-300.0,0.00020624,2]
[321857172,1712567441034,-300.0,0.00020624,2]
[321857173,1712567441044,-300.0,0.00020624,2]
[321857174,1712567441054,-300.0,0.00020624,2]
[321857175,1712567441065,-300.0,0.00020624,2]
[321857176,1712567441075,-300.0,0.00020624,2]
[321857177,1712567441085,-351.72468354,0.00020624,2]
[321857178,1712567441096,-210.06112711,0.00020625,2]
[321857179,1712567441107,-809.08158788,0.00020625,2]
[321857180,1712567441117,-2353.80413367,0.00020625,2]
[321857181,1712567441127,-2173.81938731,0.00020625,2]
[321857182,1712567441136,-1004.84708022,0.00020625,2]
[321857183,1712567441146,-542.40190173,0.00020625,2]
[321857184,1712567441156,-1241.19748567,0.00020625,2]
[321857186,1712567441308,-155.21088455,0.00020625,2]
[321857187,1712567441319,-259.85940966,0.00020625,2]
[321857188,1712567441328,-486.03849486,0.00020625,2]
[321857189,1712567441338,-704.64333317,0.00020625,2]
[321857190,1712567441364,-662.07520958,0.00020625,2]
[321857191,1712567441373,-779.36919387,0.00020625,2]
[321857192,1712567441383,-1969.2080462,0.00020625,2]
[321857193,1712567441392,-194.73994527,0.00020625,2]
[321857194,1712567441403,-247.73540138,0.00020625,2]
[321857195,1712567441413,-156.09995588,0.00020625,2]
[321857196,1712567441422,-155.13990686,0.00020625,2]
[321857197,1712567441432,-166.91997935,0.00020625,2]
[321857198,1712567441441,-155.0,0.00020625,2]
[321857199,1712567441452,-215.47501592,0.00020625,2]
[321857200,1712567441461,-4716.5472582,0.00020625,2]
[321857201,1712567441471,-165.71746394,0.00020625,2]
[321857202,1712567441481,-263.09163061,0.00020625,2]
[321857203,1712567441490,-269.15452375,0.00020625,2]
[321857204,1712567441499,-444.19714177,0.00020625,2]
[321857205,1712567441509,-597.96032771,0.00020625,2]
[321857206,1712567441522,-230.68118798,0.00020625,2]
[321857207,1712567441531,-155.5635828,0.00020625,2]
[321857208,1712567441541,-215.04952346,0.00020625,2]
[321857209,1712567441550,-624.22352962,0.00020625,2]
[321857210,1712567441560,-158.39590714,0.00020625,2]
[321857211,1712567441570,-308.12738549,0.00020625,2]
[321857212,1712567441579,-3864.16988162,0.00020625,2]
[321857213,1712567441589,-180.68788228,0.00020625,2]
[321857214,1712567441598,-155.0,0.00020625,2]
[321857215,1712567441608,-137431.835628,0.00020626,2]
[321857216,1712567441617,-8647.69334526,0.00020626,2]
[321857217,1712567441626,-932227.82012839,0.00020627,2]
[321857218,1712567441635,-464.204067,0.00020627,2]
[321857219,1712567441645,-2182.04833,0.00020627,2]
[321857220,1712567441655,-6065039.97632524,0.00020627,2]
[321857221,1712567441669,-3138844.85917016,0.00020627,2]
[321857222,1712567441679,-153.01000397,0.00020629,2]
[321857223,1712567441688,-153.01000397,0.0002064,2]
[321857224,1712567441698,-7933.45196995,0.00020642,2]
[321857225,1712567441707,-41468.12317702,0.00020645,2]
[321857226,1712567441717,-319.03035418,0.00020645,2]
[321857227,1712567441727,-2283.83441676,0.00020647,2]
[321857228,1712567441738,-153.01000397,0.00020651,2]
[321857229,1712567441749,-153.01000397,0.00020663,2]
[321857230,1712567441758,-694.25864677,0.00020665,2]
[321857231,1712567441767,-319.03035418,0.00020674,2]
[321857232,1712567441776,-153.01000397,0.00020674,2]
[321857233,1712567441785,-7933.45196995,0.00020674,2]
[321857234,1712567441794,-5731.94631505,0.00020685,2]
[321857235,1712567441803,-153.01000397,0.00020685,2]
[321857236,1712567441813,-153.01000397,0.00020697,2]
[321857237,1712567441822,-2297.68,0.000207,2]
[321857238,1712567441831,-50206.61569994,0.000207,2]
[321857239,1712567441851,-319.03035418,0.00020702,2]
[321857240,1712567441868,-7933.45196995,0.00020706,2]
[321857241,1712567441877,-363.6432665,0.00020708,2]
[321857242,1712567441887,-1469.95635244,0.00020708,2]
[321857243,1712567441897,-347.89896537,0.00020708,2]
[321857244,1712567441906,-13520.75858555,0.00020708,2]
[321857245,1712567441916,-770.25666475,0.00020708,2]
[321857246,1712567441925,-261.43307599,0.00020708,3]
[321857247,1712567441935,-153.01000397,0.00020708,2]
[321857248,1712567441945,-2283.83441676,0.0002071,2]
[321857249,1712567441955,-153.01000397,0.00020719,2]
[321857250,1712567441965,-319.03035418,0.0002073,2]
[321857251,1712567441975,-153.01000397,0.0002073,2]
[321857252,1712567441985,-202.0,0.00020732,2]
[321857253,1712567441996,-694.25864677,0.00020732,2]
[321857254,1712567442006,-7933.45196995,0.00020739,2]
[321857255,1712567442016,-153.01000397,0.00020742,2]
[321857256,1712567442027,-153.01000397,0.00020753,2]
[321857257,1712567442037,-319.03035418,0.00020759,2]
[321857258,1712567442047,-153.01000397,0.00020764,2]
[321857259,1712567442058,-7933.45196995,0.00020771,2]
[321857260,1712567442068,-2283.83441676,0.00020773,2]
[321857261,1712567442078,-153.01000397,0.00020776,2]
[321857262,1712567442088,-319.03035418,0.00020787,2]
[321857263,1712567442098,-153.01000397,0.00020787,2]
[321857264,1712567442108,-153.01000397,0.00020798,2]
[321857265,1712567442118,-3514.0,0.000208,2]
[321857266,1712567442129,-694.25864677,0.000208,2]
[321857267,1712567442139,-7933.45196995,0.00020803,2]
[321857268,1712567442162,-153.01000397,0.0002081,2]
[321857269,1712567442178,-319.03035418,0.00020815,2]
[321857270,1712567442197,-153.01000397,0.00020821,2]
[321857271,1712567442218,-2359.03979421,0.00020825,2]
[321857272,1712567442235,-500.0,0.00020831,2]
[321857273,1712567442252,-200.0,0.00020832,2]
[321857274,1712567442271,-800.0,0.00020832,2]
[321857275,1712567442288,-500.0,0.00020832,2]
[321857276,1712567442307,-200.0,0.00020832,2]
[321857277,1712567442324,-153.01000397,0.00020832,2]
[321857278,1712567442342,-7933.45196995,0.00020835,2]
[321857279,1712567442363,-2283.83441676,0.00020837,2]
[321857280,1712567442394,-5707.0,0.00020838,2]
[321857281,1712567442408,-1313.0,0.00020838,2]
[321857282,1712567442425,-4793.0,0.00020838,2]
[321857283,1712567442439,-29441.982,0.00020838,2]
[321857284,1712567442453,-2461.0,0.00020838,2]
[321857285,1712567442473,-319.03035418,0.00020843,2]
[321857286,1712567442487,-153.01000397,0.00020843,2]
[321857287,1712567442502,-153.01000397,0.00020855,2]
[321857288,1712567442519,-153.01000397,0.00020866,2]
[321857289,1712567442533,-7933.45196995,0.00020868,2]
[321857290,1712567442547,-319.03035418,0.00020872,2]
[321857291,1712567442562,-153.01000397,0.00020877,2]
[321857292,1712567442576,-165.0,0.0002088,2]
[321857293,1712567442591,-363.6432665,0.00020886,2]
[321857294,1712567442606,-1469.95635244,0.00020886,2]
[321857295,1712567442620,-347.89896537,0.00020886,2]
[321857296,1712567442636,-13520.75858555,0.00020886,2]
[321857297,1712567442651,-770.25666475,0.00020886,2]
[321857298,1712567442667,-261.43307599,0.00020886,3]
[321857299,1712567442683,-153.01000397,0.00020889,2]
[321857300,1712567442698,-5800.0,0.00020892,2]
[321857301,1712567442714,-35486.62241,0.000209,2]
[321857302,1712567442730,-12687.872264,0.000209,2]
[321857303,1712567442745,-5800.0,0.000209,2]
[321857304,1712567442760,-383.0,0.000209,2]
[321857305,1712567442775,-462389.52330742,0.000209,2]
[321857306,1712567442800,-1860.69919589,0.000209,2]
[321857332,1712567444031,-271.96520962,0.000206,2]
[321857333,1712567444043,-3606.15,0.000206,2]
[321857334,1712567444177,-1921.88479038,0.000206,2]
[321857335,1712567444187,-7258.31217787,0.00020636,2]
[321857336,1712567444196,-1963.37819585,0.00020708,2]
[321857337,1712567444205,-1108966.73838695,0.000209,2]
[321857338,1712567444217,-9257.40000601,0.000209,2]
[321857343,1712567444471,-72004.18139968,0.000209,2]
[321857344,1712567444484,-82976.36999997,0.000209,2]
[321857345,1712567444500,-3082.86235963,0.000209,2]
[321857346,1712567444513,-308.0097989,0.000209,2]
[321857347,1712567444527,-824.17181497,0.000209,2]
[321857348,1712567444631,-54092.93560146,0.000209,2]
[321857349,1712567444643,-6121.18940177,0.000209,2]
[321857350,1712567444655,-722.23906848,0.000209,2]
[321857351,1712567444667,-8643.67207993,0.000209,2]
[321857362,1712567446676,-18017.5,0.000209,2]
[321857363,1712567446693,-153337.02083012,0.000209,2]
[321857364,1712567446704,-13662.97916988,0.000209,2]
[321857365,1712567446716,-2934.35,0.000209,2]
[321857366,1712567446755,-387.08398754,0.000209,2]
[321857368,1712567446883,-14350.21250036,0.000209,2]
[321857369,1712567446978,-2997.78900002,0.000209,2]
[321857370,1712567446991,-2829.26640149,0.000209,2]
[321857371,1712567447003,-3818.61328394,0.000209,2]
[321857372,1712567447015,-2990.95717972,0.000209,2]
[321857373,1712567447027,-2315.77486189,0.000209,2]
[321857374,1712567447039,-120087.37975191,0.000209,2]
[321857375,1712567447051,-71036.01356432,0.000209,2]
[321857376,1712567447063,-475.5353918,0.000209,2]
[321857377,1712567447258,-3611.8092,0.000209,2]
[321857378,1712567447325,-4688.30083059,0.000209,2]
[321857379,1712567447397,-3813.93487654,0.000209,2]
[321857380,1712567447407,-6726.677542,0.000209,2]
[321857381,1712567447417,-7933.45196995,0.000209,2]
[321857382,1712567447426,-1011.0,0.000209,2]
[321857383,1712567447435,-162.69749952,0.000209,2]
[321857384,1712567447445,-162.69749952,0.000209,2]
[321857385,1712567447454,-162.69749952,0.000209,2]
[321857386,1712567447463,-162.69749952,0.000209,2]
[321857387,1712567447473,-162.69749952,0.000209,2]
[321857388,1712567447482,-2283.83441676,0.000209,2]
[321857389,1712567447492,-162.69749952,0.000209,2]
[321857390,1712567447501,-162.69749952,0.000209,2]
[321857391,1712567447512,-162.69749952,0.000209,2]
[321857392,1712567447525,-162.69749952,0.000209,2]
[321857393,1712567447538,-162.69749952,0.000209,2]
[321857394,1712567447547,-162.69749952,0.000209,2]
[321857395,1712567447558,-162.69749952,0.000209,2]
[321857396,1712567447567,-162.69749952,0.000209,2]
[321857397,1712567447579,-153.01000397,0.000209,2]
[321857398,1712567447588,-162.69749952,0.000209,2]
[321857399,1712567447598,-162.69749952,0.000209,2]
[321857400,1712567447607,-162.69749952,0.000209,2]
[321857401,1712567447617,-162.69749952,0.000209,2]
[321857402,1712567447626,-162.69749952,0.000209,2]
[321857403,1712567447636,-162.69749952,0.000209,2]
[321857404,1712567447646,-319.03035418,0.000209,2]
[321857405,1712567447657,-2337705.76598134,0.0002098,2]
[321857406,1712567447667,-25919.3635955,0.00020986,2]
[321857407,1712567447677,-26085.7800552,0.00020986,2]
[321857408,1712567447687,-26252.1965148,0.00020986,2]
[321857409,1712567447697,-8951.2659658,0.00020986,2]
[321857411,1712567447707,-9008.7379785,0.00020986,2]
[321857412,1712567447716,-9066.2099911,0.00020986,2]
[321857413,1712567447726,-138325.7012256,0.00020986,2]
[321857414,1712567447736,-139219.5668231,0.00020986,2]
[321857415,1712567447746,-140113.4324207,0.00020986,2]
[321857416,1712567447755,-141007.2980183,0.00020986,2]
[321857418,1712567447765,-4193.16944041,0.0002099,2]
[321857420,1712567447775,-2651.85140861,0.00020999,2]
[321857422,1712567447785,-150.20565521,0.00020999,2]
[321857424,1712567447794,-1017.6765,0.00020999,2]
[321857426,1712567447807,-223.772,0.00021,2]
[321857428,1712567447817,-247.994,0.00021,2]
[321857430,1712567447826,-966.0,0.00021,2]
[321857434,1712567447837,-460.0,0.00021,2]
[321857436,1712567447847,-1388.0,0.00021,2]
[321857438,1712567447856,-182.284,0.00021,2]
[321857439,1712567447867,-1259.0,0.00021,2]
[321857440,1712567447877,-1577644.51302155,0.00021,2]
[321857444,1712567447941,-436.29289462,0.00021,2]
[321857453,1712567448014,-5449.72482579,0.00021,2]